fUSD/lending_fUSD_20240220
["ID","MTS","AMOUNT","RATE_DAILY","PERIOD"]
[314513757,1708390243188,-684.0,0.0004342,30]
[314513758,1708390243201,-152.56,0.000436,4]
[314513759,1708390243210,-152.56,0.000436,4]
[314513760,1708390243219,-152.56,0.000436,4]
[314513761,1708390243228,-6813.31354038,0.00043667,5]
[314513762,1708390243239,-380.86998423,0.00043679,5]
[314513763,1708390243248,-151.022088,0.00043748,43]
[314513764,1708390243257,-159.35,0.00043785,2]
[314513765,1708390243267,-2000.0,0.000438,2]
[314513766,1708390243278,-477.26092921,0.00043941,4]
[314513767,1708390243289,-305.03187876,0.00043941,4]
[314513768,1708390243299,-151.022088,0.00043948,42]
[314513769,1708390243309,-171.38825125,0.0004395,2]
[314513770,1708390243319,-150.0,0.0004398,2]
[314513771,1708390243328,-177.53,0.00044,2]
[314513772,1708390243338,-151.022088,0.00044148,43]
[314513773,1708390243347,-2500.0,0.00044225,2]
[314513774,1708390243356,-151.022088,0.00044248,43]
[314513775,1708390243365,-505.94,0.0004428,2]
[314513776,1708390243375,-10874.15582214,0.00044325,2]
[314513779,1708390245590,-362.52,0.00043836,15]
[314513780,1708390245599,-458.09629476,0.00044325,2]
[314513781,1708390245747,-451.75266621,0.00044325,2]
[314513782,1708390245779,-603.5255592,0.00044325,2]
[314513783,1708390245943,-9900.0,0.00044325,2]
[314513799,1708390270181,150.0,0.00023,2]
[314513800,1708390270204,150.0,0.00023,2]
[314513801,1708390270225,150.0,0.00023,2]
[314513802,1708390270247,150.0,0.00023,2]
[314513803,1708390270269,150.0,0.00023,2]
[314513804,1708390270291,150.0,0.00023,2]
[314513805,1708390270311,150.0,0.00023,2]
[314513806,1708390270352,150.0,0.00023,2]
[314513807,1708390270373,150.0,0.00023,2]
[314513808,1708390270394,150.0,0.00023,2]
[314513809,1708390270415,150.0,0.00023,2]
[314513810,1708390270436,150.0,0.00023,2]
[314513811,1708390270457,150.0,0.00023,2]
[314513812,1708390270479,150.0,0.00023,2]
[314513813,1708390270500,150.0,0.00023,2]
[314513814,1708390270520,150.0,0.00023,2]
[314513815,1708390270540,150.0,0.00023,2]
[314513816,1708390270560,150.0,0.00023,2]
[314513817,1708390270582,150.0,0.00023,2]
[314513818,1708390270602,150.0,0.00023,2]
[314513819,1708390270622,8000.0,0.00023,2]
[314513820,1708390270642,8000.0,0.00023,2]
[314513821,1708390270661,8000.0,0.00023,2]
[314513822,1708390270680,8000.0,0.00023,2]
[314513823,1708390270701,8000.0,0.00023,2]
[314513824,1708390270721,8000.0,0.00023,2]
[314513825,1708390270741,8000.0,0.00023,2]
[314513826,1708390270762,8000.0,0.00023,2]
[314513827,1708390270787,239139.55176284,0.00023,2]
[314513828,1708390328281,150.0,0.000199,3]
[314513829,1708390328304,150.0,0.000199,3]
[314513830,1708390328325,150.0,0.000199,3]
[314513831,1708390328347,150.0,0.000199,3]
[314513832,1708390328370,150.0,0.000199,3]
[314513833,1708390328392,150.0,0.000199,3]
[314513834,1708390343667,0.47,0.00023,2]
[314513835,1708390343688,889.28094517,0.00023,2]
[314513836,1708390347715,150.0,0.00015,2]
[314513837,1708390361933,818.02438145,0.00023,2]
[314513838,1708390384199,689.76700024,0.000225,2]
[314513839,1708390391666,205.0,9.8e-05,2]
[314513840,1708390449106,1800.0,0.0002,2]
[314513849,1708390757898,1080.5644554,0.0002,2]
[314513851,1708390775893,900.4703795,0.0002,2]
[314513853,1708390791893,900.4703795,0.0002,2]
[314513855,1708390808113,469.14506772,0.0002,2]
[314513857,1708390825888,469.14506772,0.0002,2]
[314513858,1708390843898,469.14506772,0.0002,2]
[314513860,1708390863897,469.14506772,0.0002,2]
[314513861,1708390881919,469.14506772,0.0002,2]
[314513862,1708390905942,469.14506772,0.0002,2]
[314513866,1708390926267,469.14506772,0.0002,2]
[314513867,1708390943910,469.14506772,0.0002,2]
[314513868,1708390965921,469.14506772,0.0002,2]
[314513869,1708390983926,406.68004208,0.0002,2]
[314513885,1708391360161,-510.88025177,0.00024998,2]
[314513886,1708391360185,-4481.06323577,0.00024999,2]
[314513887,1708391360211,-741.30103529,0.00025,3]
[314513888,1708391360327,-8.69896471,0.00025,3]
[314513889,1708391360350,-230.4815804,0.00028164,2]
[314513890,1708391360376,-206.0,0.00028165,2]
[314513891,1708391360399,-156.17259878,0.00032795,4]
[314513892,1708391360423,-684.67206056,0.00032796,4]
[314513893,1708391360446,-150.0,0.00032798,2]
[314513894,1708391360470,-36690.85203304,0.00032799,2]
[314513895,1708391360494,-600.0,0.000328,2]
[314513896,1708391360520,-9135.0,0.000328,2]
[314513897,1708391360546,-206.0,0.00034532,13]
[314513898,1708391360569,-3422.24499731,0.00035,2]
[314513899,1708391361117,-5694.1243666,0.00035,2]
[314513900,1708391361142,-493.6526031,0.00036,4]
[314513901,1708391361166,-490.54,0.00036787,2]
[314513902,1708391361190,-3946.51429745,0.00038,2]
[314513903,1708391361215,-1678.48570255,0.00038,2]
[314513904,1708391361239,-499.99,0.00038,2]
[314513905,1708391361275,-579.57,0.00038187,2]
[314513906,1708391361299,-1640.64,0.00038341,2]
[314513907,1708391361323,-303.92,0.00038411,2]
[314513908,1708391361346,-162.81,0.00038415,2]
[314513909,1708391361369,-150.0,0.00038447,2]
[314513910,1708391361393,-250.0,0.00038487,2]
[314513911,1708391361415,-157.98,0.00038494,2]
[314513912,1708391361439,-23900.0,0.00038548,2]
[314513913,1708391361462,-191.03,0.00038554,2]
[314513914,1708391361495,-250.0,0.00038575,2]
[314513915,1708391361520,-811.78848627,0.00038581,2]
[314513923,1708391395700,177.1,0.00018379,2]
[314513935,1708391431741,-108.12151373,0.00038581,2]
[314513936,1708391431752,-570.39044227,0.00038589,4]
[314513937,1708391431796,-988.49455058,0.00038589,4]
[314513938,1708391431806,-276.57668468,0.0003859,2]
[314513939,1708391431816,-1170.27491739,0.00038596,2]
[314513940,1708391431862,-734.40367489,0.00038596,2]
[314513941,1708391431874,-95.32140772,0.00038596,2]
[314513942,1708391431884,-236.85,0.00038647,2]
[314513943,1708391431895,-800.0,0.00038659,2]
[314513944,1708391431904,-705.37,0.00038836,2]
[314513945,1708391431914,-162.05,0.00038987,2]
[314513946,1708391431924,-827.2913273,0.00039,2]
[314514028,1708391437728,-309.66815024,0.0003858,4]
[314514029,1708391437738,-456.44804037,0.0003858,4]
[314514030,1708391437748,-11321.69141978,0.00039,2]
[314514031,1708391437760,-11366.36210775,0.00039,2]
[314514032,1708391437771,-490.54,0.00039051,2]
[314514033,1708391437784,-1158.0,0.000392,2]
[314514034,1708391437794,-200.0,0.00039201,2]
[314514035,1708391437805,-365.78955476,0.00039315,9]
[314514036,1708391437814,-917.05744265,0.00039319,9]
[314514037,1708391437823,-1818.02607167,0.00039324,12]
[314514038,1708391437833,-1126.43248451,0.00039329,12]
[314514039,1708391437842,-152.69,0.000395,3]
[314514040,1708391437852,-153.7,0.00039541,2]
[314514041,1708391437861,-380.81259395,0.000398,2]
[314514042,1708391437871,-5889.31429482,0.000398,2]
[314514043,1708391437880,-218.33604295,0.000398,2]
[314514044,1708391437889,-100.804416,0.00039832,2]
[314514045,1708391437921,-203.115584,0.00039832,2]
[314514046,1708391437930,-174.0,0.0003986,2]
[314514047,1708391437941,-206.0,0.00039899,2]
[314514048,1708391437950,-153.7,0.000399,2]
[314514049,1708391437960,-1996.55206032,0.0004,2]
[314514050,1708391437972,-785.2873475,0.0004,2]
[314514051,1708391437984,-983.66610652,0.0004,2]
[314514052,1708391437996,-1693.11013703,0.0004,2]
[314514053,1708391438006,-90.66886831,0.0004,2]
[314514054,1708391438018,-59.33113169,0.0004,2]
[314514055,1708391438031,-177.53,0.0004,2]
[314514056,1708391438041,-5299.95342343,0.0004,4]
[314514057,1708391438053,-2200.04657658,0.0004,4]
[314514058,1708391438064,-2282.69600711,0.0004,14]
[314514059,1708391438077,-6766.3979032,0.0004,14]
[314514060,1708391438101,-855.99180495,0.0004,14]
[314514061,1708391438114,-2534.00039076,0.0004,14]
[314514124,1708391438782,-1389.80002358,0.0004,14]
[314514126,1708391438794,-8744.26423819,0.0004,14]
[314514128,1708391438805,-2779.33242159,0.0004,14]
[314514132,1708391438832,-883.00965683,0.0004,14]
[314514134,1708391438843,-853.01158133,0.0004,14]
[314514137,1708391438854,-932.0,0.0004,14]
[314514143,1708391438903,-711.3344237,0.0004,14]
[314514172,1708391439158,-1491.12592051,0.0004,14]
[314514180,1708391439227,-835.04692441,0.0004,14]
[314514182,1708391439236,-155.0,0.0004,2]
[314514184,1708391439244,-200.0,0.00040178,2]
[314514186,1708391439253,-218.33604293,0.00040244,2]
[314514188,1708391439262,-153.7,0.00040259,2]
[314514190,1708391439272,-153.7,0.00040619,2]
[314514192,1708391439281,-153.126439,0.00040687,9]
[314514194,1708391439290,-1148.47131446,0.00040688,5]
[314514196,1708391439300,-565.67611125,0.00040688,13]
[314514198,1708391439310,-193.62511544,0.00040688,2]
[314514201,1708391439319,-218.33604293,0.00040688,2]
[314514203,1708391439329,-511.05281918,0.00040689,10]
[314514205,1708391439338,-313.61365308,0.00040786,4]
[314514207,1708391439347,-4476.21905435,0.00040786,4]
[314514209,1708391439358,-4.84418142,0.00040786,4]
[314514211,1708391439367,-1440.14961395,0.00040787,2]
[314514213,1708391439378,-5029.04993774,0.00040787,2]
[314514215,1708391439390,-5015.92869596,0.00040787,2]
[314514217,1708391439401,-477.43974379,0.00040787,2]
[314514220,1708391439412,-349.19474161,0.00040787,2]
[314514305,1708391440341,-499.99,0.00040688,2]
[314514307,1708391440350,-2933.58728291,0.00040787,2]
[314514309,1708391440361,-568.37329392,0.00040787,2]
[314514312,1708391440372,-381.00278135,0.00040787,2]
[314514327,1708391440502,-346.75209992,0.00040787,2]
[314514329,1708391440513,-1436.94297282,0.00040787,2]
[314514332,1708391440536,-8420.80375038,0.00040787,2]
[314514334,1708391440547,-753.29473652,0.00040787,2]
[314514337,1708391440559,-303.84007919,0.00040787,2]
[314514394,1708391441079,-1642.51693484,0.00040787,2]
[314514396,1708391441091,-901.1233351,0.00040787,2]
[314514398,1708391441100,-18.84519343,0.00040787,7]
[314514401,1708391441116,-698.40370023,0.00040787,7]
[314514405,1708391441144,-955.06441551,0.00040787,7]
[314514407,1708391441155,-660.87471969,0.00040787,7]
[314514409,1708391441166,-899.78233639,0.00040787,7]
[314514415,1708391441205,-1205.46091489,0.00040787,7]
[314514584,1708391442813,-4481.06323577,0.00038999,4]
[314514587,1708391442823,-397.03977905,0.00040688,10]
[314514588,1708391442832,-15414.51779631,0.00040787,7]
[314514589,1708391442906,-10409.52783515,0.00040787,7]
[314514590,1708391442925,-13378.97096327,0.00040787,7]
[314514591,1708391442934,-4232.0,0.00040787,4]
[314514592,1708391442943,-386363.72470994,0.00040787,7]
[314514607,1708391443092,-16668.2970407,0.00040787,7]
[314514610,1708391443103,-5660.17056265,0.00040787,7]
[314514612,1708391443115,-785.27119291,0.00040787,7]
[314514903,1708391445756,-855.10049246,0.00040787,7]
[314514907,1708391445767,-768.0,0.00040787,7]
[314514919,1708391445818,-4039.90711608,0.00040787,7]
[314514923,1708391445834,-31320.34226911,0.00040787,7]
[314514930,1708391445885,-1115.02287949,0.00040787,7]
[314514931,1708391445896,-690.60504577,0.00040787,7]
[314514932,1708391445906,-2133.85869328,0.00040787,7]
[314514933,1708391445917,-2195.83339887,0.00040787,7]
[314514937,1708391446013,-52.08701004,0.00040787,7]
[314514939,1708391446024,-51412.94388268,0.00040787,7]
[314514941,1708391446037,-26437.6782275,0.00040787,7]
[314514944,1708391446055,-473.05077416,0.00040787,7]
[314514946,1708391446065,-626.09478806,0.00040787,7]
[314515026,1708391446799,-435.15276219,0.00040787,7]
[314515029,1708391446811,-972.17749933,0.00040787,7]
[314515031,1708391446822,-2551.06154637,0.00040787,7]
[314515033,1708391446833,-495.06200404,0.00040787,7]
[314515035,1708391446844,-1578.22366048,0.00040787,7]
[314515037,1708391446855,-276.36,0.00040787,7]
[314515042,1708391446886,-1858.75316946,0.00040787,7]
[314515265,1708392430117,-186.67675475,0.00025,3]
[314515266,1708392545103,-563.32324525,0.00025,3]
[314515267,1708392545124,-800.0,0.00027,3]
[314515268,1708392551102,-154.7,0.00029999,2]
[314515277,1708392631989,-310.25333288,0.00029997,2]
[314515278,1708392634323,-882.26072419,0.00029997,2]
[314515279,1708392634333,-151.15316833,0.00029998,2]
[314515280,1708392634344,-339.76539994,0.00029998,2]
[314515281,1708392634354,-1559.1674077,0.0003,4]
[314515282,1708392634363,-510.36001077,0.00035,4]
[314515283,1708392634373,-116.32916698,0.00035883,4]
[314515284,1708392634440,-193.33898326,0.00035883,4]
[314515285,1708392634452,-632.44463372,0.00035884,4]
[314515286,1708392634464,-394.41075803,0.00035884,4]
[314515287,1708392634473,-567.07545195,0.00035888,4]
[314515288,1708392634483,-380.37336698,0.00035891,4]
[314515289,1708392634492,-167.28684769,0.00035899,2]
[314515290,1708392634502,-150.0,0.00035998,3]
[314515291,1708392634512,-1425.52,0.00035999,2]
[314515292,1708392634521,-1420.83,0.00035999,2]
[314515293,1708392634532,-493.6526031,0.00036,4]
[314515294,1708392634542,-499.99,0.00036,2]
[314515295,1708392634553,-462.19,0.00036424,2]
[314515296,1708392634562,-150.0,0.00037693,2]
[314515297,1708392634572,-1078.97044673,0.00038234,2]
[314515298,1708392634586,-448.79119847,0.00038234,2]
[314515299,1708392634598,-472.2383548,0.00038234,2]
[314515300,1708392634607,-137.62509182,0.00038241,2]
[314515301,1708392634668,-139.36825392,0.00038241,2]
[314515302,1708392634678,-360.9648566,0.00038342,2]
[314515303,1708392634690,-403.61157481,0.00038342,2]
[314515304,1708392634705,-678.10851792,0.00038342,2]
[314515305,1708392634721,-888.30505067,0.00038342,2]
[314515306,1708392634731,-157.98,0.00038356,2]
[314515307,1708392634740,-779.27713397,0.00038447,2]
[314515308,1708392634751,-522.86286603,0.00038447,2]
[314515309,1708392634761,-500.0,0.00038479,2]
[314515310,1708392634770,-1124.29124289,0.00038543,2]
[314515311,1708392634790,-242.90875711,0.00038543,2]
[314515312,1708392634800,-165.41,0.00038565,2]
[314515313,1708392634809,-150.0,0.00038567,2]
[314515314,1708392634818,-182.35,0.00038578,2]
[314515315,1708392634827,-157.92,0.00038616,2]
[314515316,1708392634836,-1000.0,0.00038668,2]
[314515317,1708392634846,-462.19,0.00038688,2]
[314515318,1708392634855,-6413.13102477,0.00038693,2]
[314515319,1708392634868,-734.66922033,0.00038693,2]
[314515320,1708392634887,-721.6503031,0.00038693,2]
[314515321,1708392634900,-2573.25191921,0.00038693,2]
[314515322,1708392634912,-276.03600003,0.00038693,2]
[314515323,1708392634926,-444.0,0.00038693,2]
[314515324,1708392634957,-2252.36211486,0.00038693,2]
[314515333,1708392637940,-480.26386992,0.00038693,2]
[314515334,1708392638137,-2583.11589246,0.00038693,2]
[314515335,1708392638149,-1458.9,0.00038693,2]
[314515336,1708392638258,-609.55639716,0.00038693,2]
[314515347,1708392640625,-5353.06325816,0.00038693,2]
[314515348,1708392640635,-1425.24,0.00038698,2]
[314515349,1708392640645,-3017.87,0.00038766,37]
[314515350,1708392640654,-250.0,0.00038798,2]
[314515351,1708392640664,-250.0,0.00038798,2]
[314515352,1708392640674,-157.92,0.00038843,2]
[314515353,1708392640684,-153.37,0.00038904,2]
[314515354,1708392640693,-157.92,0.0003907,2]
[314515355,1708392640702,-338.35,0.00039178,2]
[314515356,1708392640712,-1079.0,0.000392,2]
[314515357,1708392640722,-157.92,0.00039297,2]
[314515358,1708392640731,-609.08612753,0.00039324,9]
[314515359,1708392640740,-412.67584919,0.00039334,11]
[314515360,1708392640749,-5092.93721635,0.00039338,12]
[314515361,1708392640759,-625.26,0.00039397,2]
[314515362,1708392640769,-157.92,0.00039525,2]
[314515363,1708392640778,-165.0,0.00039671,2]
[314515364,1708392640787,-157.92,0.00039752,2]
[314515365,1708392640796,-155.46,0.000398,3]
[314515366,1708392640805,-155.46,0.000398,3]
[314515367,1708392640814,-155.46,0.000398,3]
[314515368,1708392640823,-155.46,0.000398,3]
[314515369,1708392640833,-155.46,0.000398,3]
[314515370,1708392640843,-155.46,0.000398,3]
[314515371,1708392640852,-155.46,0.000398,3]
[314515372,1708392640861,-157.92,0.00039979,2]
[314515373,1708392640870,-177.53,0.0004,2]
[314515374,1708392640879,-1000.0,0.0004,7]
[314515375,1708392640888,-5000.0,0.0004,32]
[314515376,1708392640897,-559.85698143,0.0004,30]
[314515377,1708392640907,-182.35,0.00040005,2]
[314515378,1708392640918,-157.92,0.00040206,2]
[314515379,1708392640927,-157.022088,0.00040248,16]
[314515380,1708392640937,-157.022088,0.00040346,14]
[314515381,1708392640947,-167.022088,0.00040348,15]
[314515382,1708392640956,-150.0,0.00040416,2]
[314515383,1708392640967,-157.92,0.00040433,2]
[314515384,1708392640976,-157.022088,0.00040446,16]
[314515385,1708392640986,-167.022088,0.00040448,14]
[314515386,1708392640996,-306.55246849,0.00040476,4]
[314515387,1708392641007,-14217.57307749,0.00040477,2]
[314515388,1708392641757,-975.10666368,0.00040477,2]
[314515389,1708392642009,-2571.13095185,0.00040477,2]
[314515390,1708392642021,-2128.98780653,0.00040477,2]
[314515392,1708392642111,-265.13586003,0.00040477,2]
[314515393,1708392642123,-484.24573674,0.00040477,2]
[314515401,1708392643022,-796.38296251,0.00040477,2]
[314515402,1708392643034,-5133.3,0.00040477,2]
[314515403,1708392643170,-1472.873423,0.00040477,2]
[314515404,1708392643182,-2427.46625013,0.00040477,2]
[314515405,1708392643194,-5399.21597623,0.00040477,2]
[314515406,1708392643219,-13205.03129181,0.00040477,2]
[314515407,1708392643228,-1370.5,0.00040477,2]
[314515408,1708392643238,-252.9129,0.00040487,2]
[314515409,1708392643247,-342.7313346,0.00040487,2]
[314515410,1708392643257,-154.90009236,0.00040487,2]
[314515411,1708392643266,-5300.38286532,0.00040487,2]
[314515412,1708392643276,-178.39886115,0.00040487,2]
[314515413,1708392643285,-157.022088,0.00040546,15]
[314515414,1708392643294,-157.022088,0.00040548,16]
[314515415,1708392643304,-30281.09847876,0.00040577,6]
[314515416,1708392643316,-1001.68149871,0.00040577,6]
[314515417,1708392643337,-1459.41747061,0.00040577,6]
[314515418,1708392643349,-10295.23337541,0.00040577,6]
[314515421,1708392643547,-1588.4877703,0.00040577,6]
[314515422,1708392643644,-598.39842558,0.00040577,6]
[314515429,1708392645954,-395.58386274,0.00040487,2]
[314515430,1708392645968,-12845.35026225,0.00040577,6]
[314515431,1708392645980,-682.87115,0.00040577,6]
[314515432,1708392646009,-19600.0,0.00040577,6]
[314515433,1708392646270,-395.58386273,0.00040536,2]
[314515434,1708392646279,-167.33327027,0.00040577,6]
[314515435,1708392646291,-4535.7973006,0.00040577,6]
[314515436,1708392646303,-5161.1,0.00040577,6]
[314515437,1708392646314,-5166.1,0.00040577,6]
[314515438,1708392646420,-1761.01729691,0.00040577,6]
[314515443,1708392646499,-1888.16713747,0.00040577,6]
[314515446,1708393352103,200.0,0.00025,10]
[314515447,1708393591100,-150.0,0.00029999,2]
[314515448,1708393591124,-118.61706652,0.0003,2]
[314515449,1708393648106,-167.59713043,0.000299,2]
[314515450,1708393648128,-1351.09395154,0.0003,2]
[314515451,1708393750245,-451.78145588,0.0003,2]
[314515452,1708393755107,-8052.80989595,0.0003,2]
[314515453,1708393755128,-717.19010405,0.0003,2]
[314515454,1708393760113,-5621.76704629,0.0003,2]
[314515455,1708393760134,-1559.1674077,0.00030567,4]
[314515456,1708393760154,-271.83,0.00030568,2]
[314515457,1708393760174,-2131.0,0.000328,2]
[314515458,1708393760193,-9595.0,0.000329,2]
[314515459,1708393760214,-546.881964,0.0003452,2]
[314515460,1708393760234,-390.629974,0.0003452,2]
[314515461,1708393760254,-820.322946,0.00034794,2]
[314515462,1708393760278,-585.944961,0.00034794,2]
[314515463,1708393760298,-906.55483064,0.00034931,2]
[314515471,1708393832123,-187.20909736,0.00034931,2]
[314515472,1708393832132,-781.259948,0.00034931,2]
[314515473,1708393832142,-498.94356954,0.00035,2]
[314515474,1708393832151,-1367.20491,0.00035068,2]
[314515476,1708393832160,-743.84,0.00035068,2]
[314515478,1708393832169,-976.574935,0.00035068,2]
[314515479,1708393832178,-380.48,0.00035068,2]
[314515480,1708393832188,-200.0,0.00035299,2]
[314515481,1708393832197,-167.59713041,0.000353,2]
[314515482,1708393832206,-1914.086874,0.00035342,2]
[314515483,1708393832214,-1367.20491,0.00035342,2]
[314515484,1708393832224,-476.32,0.00036232,2]
[314515485,1708393832233,-422.68,0.00038096,2]
[314515486,1708393832243,-978.64942703,0.00038117,2]
[314515487,1708393832262,-1021.35057297,0.00038117,2]
[314515488,1708393832271,-811.65,0.0003812,2]
[314515489,1708393832281,-178.27,0.0003812,2]
[314515490,1708393832290,-250.06105306,0.00038209,2]
[314515491,1708393832305,-4079.14263499,0.00038209,2]
[314515492,1708393832317,-670.12884557,0.00038209,2]
[314515493,1708393832329,-525.22839655,0.00038209,2]
[314515494,1708393832462,-1559.1674077,0.00038095,4]
[314515495,1708393832472,-1264.54994434,0.00038209,2]
[314515496,1708393832493,-1725.93031722,0.00038209,2]
[314515497,1708393832513,-10277.65512,0.00038209,2]
[314515506,1708393838109,-714.30487262,0.00038209,2]
[314515507,1708393838183,-1002.64626644,0.00038209,2]
[314515508,1708393838244,-2966.62793216,0.00038209,2]
[314515509,1708393838301,-423.72461705,0.00038209,2]
[314515510,1708393838311,-250.0,0.00038312,2]
[314515511,1708393838320,-154.19383357,0.00038322,2]
[314515512,1708393838334,-95.80616643,0.00038322,2]
[314515513,1708393838343,-157.43,0.00038356,2]
[314515514,1708393838352,-187.91,0.00038473,2]
[314515515,1708393838363,-183.76,0.00038495,2]
[314515516,1708393838372,-476.32,0.00038496,2]
[314515517,1708393838382,-150.0,0.00038572,2]
[314515518,1708393838391,-409.26,0.00038668,2]
[314515519,1708393838400,-1139.33,0.00038772,2]
[314515520,1708393838409,-1000.0,0.00038844,2]
[314515521,1708393838418,-213.43635578,0.00038901,2]
[314515522,1708393838456,-297.12686332,0.00038901,2]
[314515531,1708393840728,-7041.06869549,0.00038901,2]
[314515532,1708393840739,-5155.7904488,0.00038901,2]
[314515533,1708393840751,-1298.100791,0.00038901,2]
[314515534,1708393840792,-892.07,0.00038901,2]
[314515535,1708393840803,-2784.44145,0.00038901,2]
[314515536,1708393841460,-536.73917216,0.00038901,2]
[314515537,1708393841472,-869.43028532,0.00038901,2]
[314515541,1708393843179,-7576.54506656,0.00038901,2]
[314515542,1708393843192,-3068.22217468,0.00038901,2]
[314515543,1708393843203,-2368.22124724,0.00038901,2]
[314515544,1708393843215,-1442.06376467,0.00038901,2]
[314515545,1708393843254,-24658.35198259,0.00038901,2]
[314515546,1708393843266,-2004.92479494,0.00038901,2]
[314515547,1708393843463,-13323.46690745,0.00038901,2]
[314515548,1708393843473,-1574.95286157,0.00039,30]
[314515549,1708393843482,-481.28636528,0.00039173,2]
[314515550,1708393843492,-2976.56,0.00039178,2]
[314515551,1708393843501,-1554.0,0.000392,2]
[314515552,1708393843511,-1350.05150949,0.00039274,4]
[314515553,1708393843520,-6429.48731534,0.0003932,2]
[314515554,1708393843531,-1442.64546851,0.00039333,12]
[314515555,1708393843541,-346.22103082,0.00039333,11]
[314515556,1708393843550,-662.43550379,0.0003942,5]
[314515557,1708393843560,-309.66895379,0.00039429,4]
[314515558,1708393843570,-151.77,0.00039584,2]
[314515559,1708393843580,-251.88728841,0.00039792,2]
[314515560,1708393843589,-155.2,0.000398,3]
[314515561,1708393843599,-155.2,0.000398,3]
[314515562,1708393843609,-155.2,0.000398,3]
[314515563,1708393843620,-155.2,0.000398,3]
[314515564,1708393843630,-155.2,0.000398,3]
[314515565,1708393843641,-155.2,0.000398,3]
[314515566,1708393843650,-187.91,0.00039896,2]
[314515567,1708393843660,-150.0,0.000399,2]
[314515568,1708393843669,-199.68096469,0.000399,2]
[314515569,1708393843680,-1200.41155946,0.0004,7]
[314515570,1708393843690,-4000.0,0.0004,40]
[314515571,1708393843700,-151.62155853,0.0004,4]
[314515573,1708393843709,-5145.478,0.0004,30]
[314515574,1708393843719,-150.6238046,0.0004,2]
[314515575,1708393843729,-151.022088,0.00040148,16]
[314515576,1708393843738,-151.77,0.00040149,2]
[314515577,1708393843748,-151.022088,0.00040248,13]
[314515578,1708393843758,-474.5883,0.00040267,2]
[314515580,1708393843767,-1143.3617914,0.00040267,5]
[314515581,1708393843776,-178.39886113,0.00040267,2]
[314515582,1708393843785,-481.28636528,0.00040289,2]
[314515583,1708393843794,-1400.73,0.000403,30]
[314515584,1708393843803,-409.26,0.00040312,2]
[314515585,1708393843812,-151.022088,0.00040348,14]
[314515586,1708393843821,-62225.968887,0.00040357,10]
[314515587,1708393843830,-663.3944577,0.00040366,3]
[314515588,1708393843839,-6143.4506,0.00040367,2]
[314515589,1708393843848,-245000.0,0.00040367,2]
[314515590,1708393843857,-100000.0,0.00040367,2]
[314515591,1708393843866,-151.0,0.00040367,14]
[314515592,1708393843875,-151.0,0.00040367,14]
[314515593,1708393843884,-184.626745,0.00040367,14]
[314515594,1708393843893,-151.0,0.00040367,14]
[314515595,1708393843903,-151.0,0.00040367,14]
[314515596,1708393843912,-151.0,0.00040367,14]
[314515597,1708393843921,-155.942989,0.00040367,14]
[314515598,1708393843931,-159.571665,0.00040367,14]
[314515599,1708393843941,-152.679123,0.00040367,14]
[314515600,1708393843950,-152.679123,0.00040367,14]
[314515601,1708393843958,-151.0,0.00040367,14]
[314515602,1708393843967,-151.0,0.00040367,14]
[314515603,1708393843977,-215.390891,0.00040367,14]
[314515604,1708393843986,-151.0,0.00040367,14]
[314515605,1708393843995,-153.100357,0.00040367,14]
[314515606,1708393844005,-151.0,0.00040367,14]
[314515607,1708393844014,-152.56671,0.00040367,14]
[314515608,1708393844023,-151.0,0.00040367,14]
[314515609,1708393844033,-153.256028,0.00040367,14]